fUSD/lending_fUSD_20260617
["ID","MTS","AMOUNT","RATE_DAILY","PERIOD"]
[425279423,1781640558000,-754.02,0.00038091,120]
[425279419,1781640558000,-500.0,0.00038091,120]
[425279421,1781640558000,-593.67,0.00038091,120]
[425279420,1781640558000,-754.02,0.00038091,120]
[425279422,1781640558000,-500.0,0.00038091,120]
[425279425,1781640558000,-500.0,0.00038091,120]
[425279431,1781640558000,-500.0,0.00038091,120]
[425279426,1781640558000,-593.67,0.00038091,120]
[425279427,1781640558000,-500.0,0.00038091,120]
[425279428,1781640558000,-754.02,0.00038091,120]
[425279430,1781640558000,-500.0,0.00038091,120]
[425279429,1781640558000,-13650.36,0.00038091,120]
[425279424,1781640558000,-13650.36,0.00038091,120]
[425279436,1781640559000,-13650.36,0.00038091,120]
[425279434,1781640559000,-754.02,0.00038091,120]
[425279433,1781640559000,-500.0,0.00038091,120]
[425279435,1781640559000,-557.29492788,0.00038091,120]
[425279437,1781640559000,-340.0195085,0.00038091,120]
[425279432,1781640559000,-593.67,0.00038091,120]
[425279439,1781640559000,-754.02,0.00038091,120]
[425279440,1781640559000,-500.0,0.00038091,120]
[425279441,1781640559000,-13650.36,0.00038091,120]
[425279443,1781640559000,-754.02,0.00038091,120]
[425279442,1781640559000,-593.67,0.00038091,120]
[425279444,1781640559000,-534.57596705,0.00038091,120]
[425279438,1781640559000,-593.67,0.00038091,120]
[425279445,1781640560000,-13650.36,0.00038091,120]
[425279448,1781640560000,-754.02,0.00038091,120]
[425279447,1781640560000,-13650.36,0.00038091,120]
[425279446,1781640560000,-593.75132663,0.00038091,120]
[425279449,1781640560000,-13650.36,0.00038091,120]
[425279455,1781640560000,-500.0,0.00038091,120]
[425279452,1781640560000,-754.02,0.00038091,120]
[425279456,1781640560000,-500.0,0.00038091,120]
[425279454,1781640560000,-754.02,0.00038091,120]
[425279450,1781640560000,-754.02,0.00038091,120]
[425279451,1781640560000,-13650.36,0.00038091,120]
[425279453,1781640560000,-13650.36,0.00038091,120]
[425279468,1781640561000,-500.0,0.00038091,120]
[425279457,1781640561000,-13650.36,0.00038091,120]
[425279458,1781640561000,-754.02,0.00038091,120]
[425279459,1781640561000,-500.0,0.00038091,120]
[425279470,1781640561000,-169.11975146,0.00038091,120]
[425279461,1781640561000,-500.0,0.00038091,120]
[425279460,1781640561000,-500.0,0.00038091,120]
[425279464,1781640561000,-500.0,0.00038091,120]
[425279466,1781640561000,-13650.44145878,0.00038091,120]
[425279465,1781640561000,-501.79828324,0.00038091,120]
[425279467,1781640561000,-754.02,0.00038091,120]
[425279469,1781640561000,-754.02,0.00038091,120]
[425279463,1781640561000,-754.02,0.00038091,120]
[425279462,1781640561000,-13650.36,0.00038091,120]
[425279475,1781640562000,-500.0,0.00038091,120]
[425279471,1781640562000,-501.02,0.00038091,120]
[425279473,1781640562000,-754.02,0.00038091,120]
[425279472,1781640562000,-754.02,0.00038091,120]
[425279474,1781640562000,-2075.08,0.00038091,120]
[425279476,1781640562000,-754.20874024,0.00038091,120]
[425279477,1781640562000,-501.02,0.00038091,120]
[425279479,1781640562000,-501.02,0.00038091,120]
[425279480,1781640562000,-2075.08,0.00038091,120]
[425279481,1781640562000,-530.26,0.00038091,120]
[425279482,1781640562000,-501.02,0.00038091,120]
[425279483,1781640562000,-500.0,0.00038091,120]
[425279478,1781640562000,-2075.08,0.00038091,120]
[425279484,1781640563000,-2075.08,0.00038091,120]
[425279486,1781640563000,-530.26,0.00038091,120]
[425279485,1781640563000,-501.02,0.00038091,120]
[425279487,1781640563000,-500.0,0.00038091,120]
[425279488,1781640563000,-2075.08,0.00038091,120]
[425279490,1781640563000,-530.26,0.00038091,120]
[425279491,1781640563000,-500.0,0.00038091,120]
[425279492,1781640563000,-2075.08,0.00038091,120]
[425279493,1781640563000,-501.02,0.00038091,120]
[425279494,1781640563000,-530.26,0.00038091,120]
[425279495,1781640563000,-2075.08,0.00038091,120]
[425279489,1781640563000,-501.02,0.00038091,120]
[425279496,1781640564000,-530.26,0.00038091,120]
[425279497,1781640564000,-2075.08,0.00038091,120]
[425279498,1781640564000,-500.0,0.00038091,120]
[425279499,1781640564000,-530.26,0.00038091,120]
[425279501,1781640564000,-2075.08,0.00038091,120]
[425279500,1781640564000,-501.02,0.00038091,120]
[425279503,1781640564000,-530.26,0.00038091,120]
[425279508,1781640564000,-501.02,0.00038091,120]
[425279507,1781640564000,-530.26,0.00038091,120]
[425279502,1781640564000,-500.0,0.00038091,120]
[425279506,1781640564000,-500.0,0.00038091,120]
[425279504,1781640564000,-501.02,0.00038091,120]
[425279505,1781640564000,-2075.08,0.00038091,120]
[425279509,1781640565000,-2075.08,0.00038091,120]
[425279510,1781640565000,-500.0,0.00038091,120]
[425279511,1781640565000,-501.02,0.00038091,120]
[425279512,1781640565000,-2075.08,0.00038091,120]
[425279514,1781640565000,-501.02,0.00038091,120]
[425279513,1781640565000,-500.0,0.00038091,120]
[425279516,1781640565000,-2075.08,0.00038091,120]
[425279517,1781640565000,-500.0,0.00038091,120]
[425279518,1781640565000,-501.02,0.00038091,120]
[425279519,1781640565000,-500.0,0.00038091,120]
[425279520,1781640565000,-530.26,0.00038091,120]
[425279515,1781640565000,-530.26,0.00038091,120]
[425279521,1781640566000,-2075.08,0.00038091,120]
[425279522,1781640566000,-500.0,0.00038091,120]
[425279523,1781640566000,-280.12694329,0.00038091,120]
[425279524,1781640566000,-500.0,0.00038091,120]
[425279525,1781640566000,-501.02,0.00038091,120]
[425279526,1781640566000,-635.86845859,0.00038091,120]
[425279529,1781640566000,-500.0,0.00038091,120]
[425279528,1781640566000,-2075.08,0.00038091,120]
[425279530,1781640566000,-530.26,0.00038091,120]
[425279531,1781640566000,-2075.08,0.00038091,120]
[425279532,1781640566000,-500.0,0.00038091,120]
[425279533,1781640566000,-2075.08,0.00038091,120]
[425279527,1781640566000,-530.26,0.00038091,120]
[425279534,1781640567000,-501.02,0.00038091,120]
[425279535,1781640567000,-530.26,0.00038091,120]
[425279536,1781640567000,-2075.08,0.00038091,120]
[425279537,1781640567000,-530.26,0.00038091,120]
[425279538,1781640567000,-501.02,0.00038091,120]
[425279540,1781640567000,-2075.08,0.00038091,120]
[425279539,1781640567000,-500.0,0.00038091,120]
[425279542,1781640567000,-501.02,0.00038091,120]
[425279544,1781640567000,-530.26,0.00038091,120]
[425279543,1781640567000,-2075.08,0.00038091,120]
[425279545,1781640567000,-501.02,0.00038091,120]
[425279546,1781640567000,-2075.08,0.00038091,120]
[425279547,1781640567000,-530.26,0.00038091,120]
[425279541,1781640567000,-530.26,0.00038091,120]
[425279548,1781640568000,-501.02,0.00038091,120]
[425279549,1781640568000,-768.16,0.00038091,120]
[425279550,1781640568000,-2075.08,0.00038091,120]
[425279552,1781640568000,-501.02,0.00038091,120]
[425279551,1781640568000,-530.26,0.00038091,120]
[425279553,1781640568000,-244.94,0.00038091,120]
[425279554,1781640568000,-2075.08,0.00038091,120]
[425279556,1781640568000,-768.16,0.00038091,120]
[425279557,1781640568000,-501.02,0.00038091,120]
[425279558,1781640568000,-2075.24,0.00038091,120]
[425279559,1781640568000,-768.16,0.00038091,120]
[425279560,1781640568000,-530.26,0.00038091,120]
[425279555,1781640568000,-530.26,0.00038091,120]
[425279561,1781640569000,-501.02,0.00038091,120]
[425279562,1781640569000,-768.16,0.00038091,120]
[425279563,1781640569000,-530.26,0.00038091,120]
[425279564,1781640569000,-501.02,0.00038091,120]
[425279565,1781640569000,-500.0,0.00038091,120]
[425279567,1781640569000,-501.13277683,0.00038091,120]
[425279566,1781640569000,-530.26,0.00038091,120]
[425279569,1781640569000,-530.44000001,0.00038091,120]
[425279574,1781640569000,-768.16,0.00038091,120]
[425279573,1781640569000,-500.0,0.00038091,120]
[425279568,1781640569000,-530.26,0.00038091,120]
[425279572,1781640569000,-768.16,0.00038091,120]
[425279570,1781640569000,-500.0,0.00038091,120]
[425279571,1781640569000,-500.0,0.00038091,120]
[425279575,1781640570000,-500.0,0.00038091,120]
[425279576,1781640570000,-768.16,0.00038091,120]
[425279577,1781640570000,-500.0,0.00038091,120]
[425279578,1781640570000,-500.0,0.00038091,120]
[425279580,1781640570000,-500.0,0.00038091,120]
[425279579,1781640570000,-768.16,0.00038091,120]
[425279582,1781640570000,-768.16,0.00038091,120]
[425279583,1781640570000,-500.0,0.00038091,120]
[425279584,1781640570000,-768.16,0.00038091,120]
[425279586,1781640570000,-500.0,0.00038091,120]
[425279585,1781640570000,-3028.33,0.00038091,120]
[425279587,1781640570000,-500.0,0.00038091,120]
[425279581,1781640570000,-500.0,0.00038091,120]
[425279593,1781640571000,-500.0,0.00038091,120]
[425279589,1781640571000,-3028.33,0.00038091,120]
[425279590,1781640571000,-500.0,0.00038091,120]
[425279591,1781640571000,-768.16,0.00038091,120]
[425279592,1781640571000,-3028.33,0.00038091,120]
[425279594,1781640571000,-768.16,0.00038091,120]
[425279588,1781640571000,-768.16,0.00038091,120]
[425279596,1781640571000,-500.0,0.00038091,120]
[425279597,1781640571000,-768.16,0.00038091,120]
[425279598,1781640571000,-3028.33,0.00038091,120]
[425279599,1781640571000,-495.39,0.00038091,120]
[425279600,1781640571000,-768.16,0.00038091,120]
[425279601,1781640571000,-3028.33,0.00038091,120]
[425279595,1781640571000,-3028.33,0.00038091,120]
[425279602,1781640572000,-500.0,0.00038091,120]
[425279603,1781640572000,-768.16,0.00038091,120]
[425279605,1781640572000,-500.0,0.00038091,120]
[425279606,1781640572000,-768.16,0.00038091,120]
[425279607,1781640572000,-3028.33,0.00038091,120]
[425279608,1781640572000,-500.0,0.00038091,120]
[425279604,1781640572000,-3028.33,0.00038091,120]
[425279611,1781640572000,-500.0,0.00038091,120]
[425279609,1781640572000,-768.16,0.00038091,120]
[425279614,1781640572000,-3028.33,0.00038091,120]
[425279615,1781640572000,-500.0,0.00038091,120]
[425279612,1781640572000,-500.0,0.00038091,120]
[425279613,1781640572000,-768.16,0.00038091,120]
[425279610,1781640572000,-3028.33,0.00038091,120]
[425279618,1781640573000,-2579.76681783,0.00038091,120]
[425279617,1781640573000,-768.16,0.00038091,120]
[425279616,1781640573000,-500.0,0.00038091,120]
[425279761,1781640640000,150.0,0.00014365,2]
[425279926,1781640641000,1000.0,0.0003,120]
[425280298,1781640645000,151.0,0.00013926,2]
[425280299,1781640646000,151.0,0.00013926,2]
[425280334,1781640648000,166.66,0.00014296,2]
[425280335,1781640648000,166.66,0.00014597,2]
[425280336,1781640652000,200.1,0.00014365,2]
[425280341,1781640655000,152.0,0.00014308,2]
[425280337,1781640655000,152.0,0.00014308,2]
[425280338,1781640655000,152.0,0.00014308,2]
[425280339,1781640655000,152.0,0.00014308,2]
[425280342,1781640655000,152.0,0.00014312,2]
[425280340,1781640655000,152.0,0.00014308,2]
[425280344,1781640655000,152.0,0.00014312,2]
[425280346,1781640655000,152.0,0.00014316,2]
[425280345,1781640655000,152.0,0.00014312,2]
[425280347,1781640655000,152.0,0.00014316,2]
[425280343,1781640655000,152.0,0.00014312,2]
[425280348,1781640663000,288.48604092,0.00013488,2]
[425280352,1781640664000,207.3158364,0.00013488,2]
[425280353,1781640664000,151.25404136,0.00013488,2]
[425280351,1781640664000,257.32251386,0.00013488,2]
[425280350,1781640664000,223.20617732,0.00013488,2]
[425280349,1781640664000,254.62513708,0.00013488,2]
[425280354,1781640666000,200.0,0.00014271,2]
[425280355,1781640670000,174.72,0.00014365,2]
[425280356,1781640681000,500.0,0.00014365,3]
[425280381,1781640683000,-151.0,0.00014899,2]
[425280372,1781640683000,-5800.0,0.00014849,2]
[425280374,1781640683000,-150.0,0.00014865,2]
[425280364,1781640683000,-200.0,0.00014784,7]
[425280375,1781640683000,-5800.0,0.00014866,2]
[425280373,1781640683000,-5800.0,0.00014858,2]
[425280366,1781640683000,-211.83203967,0.00014814,2]
[425280367,1781640683000,-511.83491361,0.00014814,2]
[425280365,1781640683000,-230.81,0.00014812,2]
[425280369,1781640683000,-5800.0,0.00014823,2]
[425280361,1781640683000,-200.0,0.00014784,2]
[425280371,1781640683000,-5800.0,0.00014841,2]
[425280362,1781640683000,-200.0,0.00014784,2]
[425280370,1781640683000,-5800.0,0.00014832,2]
[425280360,1781640683000,-25380.10226888,0.00014766,2]
[425280378,1781640683000,-5800.0,0.00014891,2]
[425280368,1781640683000,-5800.0,0.00014815,2]
[425280359,1781640683000,-2386.648,0.00014766,2]
[425280358,1781640683000,-1186.51322754,0.00014766,2]
[425280357,1781640683000,-1156.56160358,0.00014766,2]
[425280363,1781640683000,-200.0,0.00014784,7]
[425280377,1781640683000,-5800.0,0.00014883,2]
[425280385,1781640683000,-500.0,0.00014999,2]
[425280376,1781640683000,-5800.0,0.00014874,2]
[425280402,1781640683000,-228384.13781219,0.00015,2]
[425280401,1781640683000,-733.70159928,0.00014999,2]
[425280394,1781640683000,-500.0,0.00014999,2]
[425280396,1781640683000,-173.46902805,0.00014999,2]
[425280398,1781640683000,-300.0,0.00014999,2]
[425280400,1781640683000,-300.0,0.00014999,2]
[425280399,1781640683000,-300.0,0.00014999,2]
[425280397,1781640683000,-500.0,0.00014999,2]
[425280395,1781640683000,-500.0,0.00014999,2]
[425280392,1781640683000,-500.0,0.00014999,2]
[425280389,1781640683000,-500.0,0.00014999,2]
[425280390,1781640683000,-500.0,0.00014999,2]
[425280393,1781640683000,-500.0,0.00014999,2]
[425280386,1781640683000,-500.0,0.00014999,2]
[425280388,1781640683000,-500.0,0.00014999,2]
[425280387,1781640683000,-500.0,0.00014999,2]
[425280384,1781640683000,-500.0,0.00014999,2]
[425280391,1781640683000,-500.0,0.00014999,2]
[425280383,1781640683000,-500.0,0.00014999,2]
[425280382,1781640683000,-152.47786323,0.00014953,2]
[425280380,1781640683000,-313.0,0.00014899,2]
[425280379,1781640683000,-166.66,0.00014898,2]
[425280405,1781640685000,-400.51824,0.00015,2]
[425280403,1781640685000,-12329.50981516,0.00015,2]
[425280404,1781640685000,-28746.2100541,0.00015,2]
[425280406,1781640685000,-632.00874465,0.00015,2]
[425280407,1781640685000,-375.352,0.00015,2]
[425280423,1781640687000,-11099.38802017,0.00015,2]
[425280409,1781640687000,-626939.92033364,0.00015,2]
[425280411,1781640687000,-2082.87337575,0.00015,2]
[425280410,1781640687000,-4163113.72796642,0.00015,2]
[425280412,1781640687000,-475.94190023,0.00015,2]
[425280413,1781640687000,-2046044.62401736,0.00015,2]
[425280414,1781640687000,322.64,0.00014365,2]
[425280415,1781640687000,-2005.8386884,0.00015,2]
[425280408,1781640687000,-489.23389195,0.00015,2]
[425280420,1781640687000,-12354.56960388,0.00015,2]
[425280416,1781640687000,-677.0,0.00015,2]
[425280418,1781640687000,-360.11324534,0.00015,2]
[425280419,1781640687000,-683.4077105,0.00015,2]
[425280421,1781640687000,-447.1571751,0.00015,2]
[425280422,1781640687000,-488.52303721,0.00015,2]
[425280424,1781640687000,-63608.02436342,0.00015,2]
[425280417,1781640687000,-784.78823798,0.00015,2]
[425280425,1781640687000,-103508.15534738,0.00015,2]
[425280426,1781640688000,175.6,0.00013868,2]
[425280427,1781640689000,-59145.24637829,0.00015,2]
[425280428,1781640691000,168.87301206,0.00014597,2]
[425280429,1781640810000,376.16,0.000147,2]
[425280430,1781640861000,153.67002333,0.00014687,2]
[425280432,1781640873000,166.66,0.00014592,2]
[425280431,1781640873000,166.66,0.00014291,2]
[425280433,1781640907000,2776.5,0.00014365,2]
[425280439,1781641397000,2500.0,0.00014292,2]
[425280440,1781641497000,250.0,0.00014,2]
[425280441,1781641515000,1205.19,0.00014081,2]
[425280443,1781641639000,727.92,0.000101,2]
[425280444,1781641665000,350.0,0.00014649,2]
[425280447,1781641681000,166.66,0.00014016,2]
[425280446,1781641681000,166.66,0.00013733,2]
[425280445,1781641681000,166.66,0.0001345,2]
[425280449,1781641683000,166.66,0.00014583,2]
[425280448,1781641683000,166.66,0.00014299,2]
[425280450,1781641747000,350.74,0.000101,2]
[425280451,1781641747000,14437.908617,7.945e-05,2]
[425280452,1781641768000,150.0,0.00014158,2]
[425280462,1781641833000,-955.06,0.00014744,2]
[425280463,1781641833000,-200.0,0.00014744,2]
[425280465,1781641833000,-200.0,0.00014745,2]
[425280468,1781641833000,-674.76590532,0.00014806,2]
[425280464,1781641833000,-150.0,0.00014744,2]
[425280469,1781641833000,-174.72,0.00014819,2]
[425280467,1781641833000,-4723.8043,0.000148,2]
[425280470,1781641833000,-439.82,0.00014819,2]
[425280471,1781641833000,-5742.3,0.00014819,2]
[425280472,1781641833000,-176.74,0.00014819,2]
[425280466,1781641833000,-600.0,0.00014746,2]
[425280478,1781641833000,-160.0,0.0001486,2]
[425280474,1781641833000,-450.46533539,0.00014826,2]
[425280481,1781641833000,-300.928,0.00014898,2]
[425280482,1781641833000,-2917.63381427,0.00014898,2]
[425280473,1781641833000,-172.72973787,0.00014826,2]
[425280483,1781641833000,-2000.0,0.00014898,2]
[425280479,1781641833000,-166.66,0.00014866,2]
[425280480,1781641833000,-207.73,0.00014868,2]
[425280477,1781641833000,-10000.0,0.00014827,2]
[425280475,1781641833000,-422.38512849,0.00014826,2]
[425280476,1781641833000,-150.0,0.00014826,2]
[425280496,1781641834000,-152.17690273,0.000149,2]
[425280487,1781641834000,-321.31932808,0.00014898,2]
[425280495,1781641834000,-2917.63381421,0.000149,2]
[425280486,1781641834000,-182.14157492,0.00014898,2]
[425280490,1781641834000,-2917.63381421,0.00014899,2]
[425280494,1781641834000,-2917.63381421,0.000149,2]
[425280485,1781641834000,-2917.63381421,0.00014898,2]
[425280493,1781641834000,-2917.63381421,0.00014899,2]
[425280488,1781641834000,-480.67449796,0.00014898,2]
[425280491,1781641834000,-2917.63381421,0.00014899,2]
[425280492,1781641834000,-2917.63381421,0.00014899,2]
[425280484,1781641834000,-2917.63381421,0.00014898,2]
[425280498,1781641834000,-2917.63381421,0.000149,2]
[425280489,1781641834000,-650.3607,0.00014898,2]
[425280502,1781641834000,-172.72973787,0.00014923,2]
[425280513,1781641834000,-379.98116341,0.00014998,2]
[425280497,1781641834000,-4952.9304,0.000149,2]
[425280499,1781641834000,-3562.56748682,0.000149,2]
[425280514,1781641834000,-3209.82391698,0.00014998,2]
[425280512,1781641834000,-1160.88,0.00014998,2]
[425280510,1781641834000,-9313.84389,0.00014998,2]
[425280509,1781641834000,-286.7820206,0.00014998,2]
[425280507,1781641834000,-722.8808007,0.00014998,2]
[425280511,1781641834000,-200163.08034978,0.00014998,2]
[425280506,1781641834000,-500.0,0.00014997,2]
[425280504,1781641834000,-168.15625109,0.0001497,2]
[425280503,1781641834000,-10000.0,0.00014961,2]
[425280505,1781641834000,-151.0,0.00014997,2]
[425280501,1781641834000,-150.0,0.00014912,2]
[425280500,1781641834000,-10588.81795724,0.000149,2]
[425280508,1781641834000,-2538.7389575,0.00014998,2]
[425280544,1781641839000,-500.0,0.00014999,2]
[425280547,1781641839000,-500.0,0.00014999,2]
[425280543,1781641839000,-500.0,0.00014999,2]
[425280549,1781641839000,-500.0,0.00014999,2]
[425280545,1781641839000,-500.0,0.00014999,2]
[425280546,1781641839000,-500.0,0.00014999,2]
[425280558,1781641839000,-391.13773166,0.00014999,2]
[425280550,1781641839000,-500.0,0.00014999,2]
[425280551,1781641839000,-500.0,0.00014999,2]
[425280553,1781641839000,-500.0,0.00014999,2]
[425280552,1781641839000,-500.0,0.00014999,2]
[425280557,1781641839000,-108.86226834,0.00014999,2]
[425280542,1781641839000,-500.0,0.00014999,2]
[425280559,1781641839000,-500.0,0.00014999,2]
[425280548,1781641839000,-500.0,0.00014999,2]
[425280541,1781641839000,-500.0,0.00014999,2]
[425280530,1781641839000,-3343.64692985,0.00014898,2]
[425280539,1781641839000,-500.0,0.00014999,2]
[425280554,1781641839000,-500.0,0.00014999,2]
[425280525,1781641839000,-333.32,0.00014898,2]
[425280526,1781641839000,-550.0,0.00014898,2]
[425280527,1781641839000,-3866.82546826,0.00014898,2]
[425280529,1781641839000,-315.0,0.00014898,2]
[425280528,1781641839000,-580.37950307,0.00014898,2]
[425280540,1781641839000,-500.0,0.00014999,2]
[425280531,1781641839000,-500.0,0.00014997,2]
[425280533,1781641839000,-53225.2685708,0.00014998,2]
[425280535,1781641839000,-53200.9250353,0.00014998,2]
[425280532,1781641839000,-33625.33898953,0.00014998,2]
[425280537,1781641839000,-3493.1522559,0.00014998,2]
[425280536,1781641839000,-4291.6575272,0.00014998,2]
[425280538,1781641839000,-500.0,0.00014999,2]
[425280534,1781641839000,-4754.6059402,0.00014998,2]
[425280555,1781641839000,-500.0,0.00014999,2]
[425280607,1781641839000,-500.0,0.00014999,2]
[425280560,1781641839000,-500.0,0.00014999,2]
[425280594,1781641839000,-500.0,0.00014999,2]
[425280624,1781641839000,-500.0,0.00014999,2]
[425280596,1781641839000,-500.0,0.00014999,2]
[425280598,1781641839000,-500.0,0.00014999,2]
[425280605,1781641839000,-500.0,0.00014999,2]
[425280601,1781641839000,-500.0,0.00014999,2]
[425280590,1781641839000,-500.0,0.00014999,2]
[425280603,1781641839000,-500.0,0.00014999,2]
[425280613,1781641839000,-500.0,0.00014999,2]
[425280611,1781641839000,-500.0,0.00014999,2]
[425280620,1781641839000,-500.0,0.00014999,2]
[425280618,1781641839000,-500.0,0.00014999,2]
[425280622,1781641839000,-500.0,0.00014999,2]
[425280556,1781641839000,-500.0,0.00014999,2]
[425280609,1781641839000,-500.0,0.00014999,2]
[425280592,1781641839000,-500.0,0.00014999,2]
[425280616,1781641839000,-500.0,0.00014999,2]
[425280587,1781641839000,-500.0,0.00014999,2]
[425280585,1781641839000,-500.0,0.00014999,2]
[425280563,1781641839000,-377.6196746,0.00014999,2]
[425280562,1781641839000,-500.0,0.00014999,2]
[425280567,1781641839000,-500.0,0.00014999,2]
[425280565,1781641839000,-500.0,0.00014999,2]
[425280568,1781641839000,-500.0,0.00014999,2]
[425280575,1781641839000,-500.0,0.00014999,2]
[425280564,1781641839000,-619.37276307,0.00014999,2]
[425280577,1781641839000,-500.0,0.00014999,2]
[425280571,1781641839000,-500.0,0.00014999,2]
[425280579,1781641839000,-500.0,0.00014999,2]
[425280573,1781641839000,-500.0,0.00014999,2]
[425280581,1781641839000,-500.0,0.00014999,2]
[425280569,1781641839000,-500.0,0.00014999,2]
[425280583,1781641839000,-500.0,0.00014999,2]
[425280717,1781641840000,-500.0,0.00014999,2]
[425280709,1781641840000,-500.0,0.00014999,2]
[425280698,1781641840000,-500.0,0.00014999,2]
[425280701,1781641840000,-500.0,0.00014999,2]
[425280685,1781641840000,-500.0,0.00014999,2]
[425280696,1781641840000,-500.0,0.00014999,2]
[425280705,1781641840000,-500.0,0.00014999,2]
[425280707,1781641840000,-500.0,0.00014999,2]
[425280703,1781641840000,-500.0,0.00014999,2]
[425280692,1781641840000,-500.0,0.00014999,2]
[425280694,1781641840000,-500.0,0.00014999,2]
[425280718,1781641840000,-500.0,0.00014999,2]
[425280716,1781641840000,-500.0,0.00014999,2]
[425280719,1781641840000,-500.0,0.00014999,2]
[425280711,1781641840000,-500.0,0.00014999,2]
[425280714,1781641840000,-500.0,0.00014999,2]
[425280712,1781641840000,-500.0,0.00014999,2]
[425280715,1781641840000,-500.0,0.00014999,2]
[425280721,1781641840000,-500.0,0.00014999,2]
[425280723,1781641840000,-500.0,0.00014999,2]
[425280724,1781641840000,-500.0,0.00014999,2]
[425280727,1781641840000,-500.0,0.00014999,2]
[425280725,1781641840000,-500.0,0.00014999,2]
[425280733,1781641840000,-500.0,0.00014999,2]
[425280687,1781641840000,-500.0,0.00014999,2]
[425280720,1781641840000,-500.0,0.00014999,2]
[425280690,1781641840000,-500.0,0.00014999,2]
[425280648,1781641840000,-500.0,0.00014999,2]
[425280682,1781641840000,-500.0,0.00014999,2]
[425280630,1781641840000,-500.0,0.00014999,2]
[425280628,1781641840000,-3000.0,0.00014999,2]
[425280626,1781641840000,-500.0,0.00014999,2]
[425280632,1781641840000,-500.0,0.00014999,2]
[425280634,1781641840000,-500.0,0.00014999,2]
[425280636,1781641840000,-500.0,0.00014999,2]
[425280638,1781641840000,-500.0,0.00014999,2]
[425280657,1781641840000,-500.0,0.00014999,2]
[425280640,1781641840000,-500.0,0.00014999,2]
[425280642,1781641840000,-500.0,0.00014999,2]
[425280644,1781641840000,-500.0,0.00014999,2]
[425280646,1781641840000,-500.0,0.00014999,2]
[425280678,1781641840000,-500.0,0.00014999,2]
[425280722,1781641840000,-500.0,0.00014999,2]
[425280650,1781641840000,-500.0,0.00014999,2]
[425280653,1781641840000,-500.0,0.00014999,2]
[425280661,1781641840000,-500.0,0.00014999,2]
[425280659,1781641840000,-500.0,0.00014999,2]
[425280665,1781641840000,-500.0,0.00014999,2]
[425280668,1781641840000,-500.0,0.00014999,2]
[425280663,1781641840000,-500.0,0.00014999,2]
[425280680,1781641840000,-500.0,0.00014999,2]
[425280670,1781641840000,-500.0,0.00014999,2]
[425280672,1781641840000,-500.0,0.00014999,2]
[425280674,1781641840000,-500.0,0.00014999,2]
[425280676,1781641840000,-500.0,0.00014999,2]
[425280654,1781641840000,-500.0,0.00014999,2]
[425280731,1781641840000,-500.0,0.00014999,2]
[425280713,1781641840000,-500.0,0.00014999,2]
[425280730,1781641840000,-500.0,0.00014999,2]
[425280762,1781641840000,-500.0,0.00015068,7]
[425280763,1781641840000,-500.0,0.00015068,7]